{"text_format":"1","workbook":"xlsx","n_sheets":1,"sheets":["závěrečné vyúčtování"],"not_rendered":{"charts":0,"images":1,"macros":1,"external_links":0,"defined_names":6,"comments":1,"pivot_tables":0},"unopened":[],"bounds":{"document_bytes":16777216,"sheet_cells":100000,"rows_first":2000,"rows_last":500,"rows_between":2000,"halvings":0,"cell_chars":16384,"cell_head_chars":4096},"cells_cut":0,"cells_raw":0,"read":"whole","date_system":"1900"}

{"sheet":"závěrečné vyúčtování","index":0,"n_rows":127,"n_cols":26,"rows_kept":127,"cut":false,"hidden":false,"merged":[[76,6,76,7],[79,0,79,2],[79,3,79,5],[79,6,79,7],[78,0,78,2],[78,3,78,5],[78,6,78,7],[77,0,77,2],[77,3,77,5],[77,6,77,7],[48,0,48,2],[55,3,55,4],[65,0,65,4],[58,3,58,4],[57,3,57,4],[49,0,49,2],[46,0,46,2],[46,6,46,7],[47,0,47,2],[47,6,47,7],[19,0,19,3],[19,4,19,7],[20,0,20,3],[21,0,21,3],[21,4,21,7],[15,0,15,3],[15,4,15,7],[16,0,16,3],[16,4,16,7],[17,0,17,3],[17,4,17,7],[11,0,11,3],[11,4,11,7],[12,0,12,3],[12,4,12,7],[13,0,13,3],[13,4,13,7],[6,0,6,7],[8,0,8,3],[8,4,8,7],[9,0,9,3],[9,4,9,7],[97,0,97,7],[98,0,98,7],[99,0,99,7],[70,1,70,7],[72,1,72,7],[89,0,89,4],[89,5,89,7],[91,0,91,4],[91,5,91,7],[93,2,93,3],[74,0,74,7],[75,0,75,2],[75,3,75,5],[75,6,75,7],[76,0,76,2],[76,3,76,5],[48,6,48,7],[62,3,62,4],[61,3,61,4],[60,3,60,4],[59,3,59,4],[56,3,56,4],[54,3,54,4],[49,6,49,7],[65,8,67,8],[50,0,50,2],[50,6,50,7],[63,3,63,4],[64,3,64,4]]}
[]
[]
[]
[]
[]
[]
["Závěrečné vyúčtování / vypořádání projektu podpořeného \nz rozpočtu města Liberec a Závěrečná zpráva o realizaci projektu"]
[]
["Program (název a číslo):",null,null,null,null,null,null,null,"Vyplnění žlutých polí je povinné (podbarvení po zadání textu zmizí)."]
["Název projektu:"]
[]
["Název příjemce: "]
["IČO příjemce:"]
["Bankovní spojení příjemce:",null,null,null,null,null,null,null,"Zadejte číslo bankovního účtu včetně kódu banky."]
[]
["Smlouva číslo: ",null,null,null,"DS/xxxxxx"]
["Termín realizace projektu:"]
["Celková výše způsobilých výdajů vynaložená příjemcem na projekt:"]
["Schválená výše dotace dle smlouvy - ",null,null,null,"v Kč:",null,"v %:",null,"Opište údaje (Kč i %) ze smlouvy."]
["Finanční prostředky doposud vyplacené příjemci  z rozpočtu poskytovatele:",null,null,null,null,null,null,null,"= výše zálohy dotace vyplacené na tento projekt"]
["Výše dotace dle skutečnosti -  ",null,null,null,"v Kč:",{"$f":"IF(E18*H19%>F19,F19,E18*H19%)","v":0},"v %:",{"$f":"F21/E18*100","v":{"$error":"#DIV/0!"}}]
["Do rozpočtu poskytovatele bude vráceno:",null,null,null,{"$f":"IF(E20-F21<0,0,E20-F21)","v":0},null,null,null,"informace pro Vás - bude Vám doplaceno:",{"$f":"F21-E20","v":0}]
[]
["Popis realizace projektu:"]
["(popište činnosti v rámci projektu realizované v termínu realizace projektu - jak byl projekt zrealizován)"]
[null,null,null,null,null,null,null,null,"Pro odřádkování použijte levý ALT + ENTER."]
[]
[]
[]
[]
[]
[]
[]
[]
[]
[]
[]
[]
[]
[]
[]
[]
[]
[]
[]
["Splnění závazných parametrů:"]
["parametr",null,null,"jednotka","hodnota \ndle smlouvy","dosažená hodnota","dokumenty\ndokládající splnění parametru1"]
[null,null,null,null,null,null,null,null,"Zadejte všechny parametry ze smlouvy.",null,null,null,null,null,null,null,null,null,null,null,null,null,null,null,null,{"$f":"G48","v":0}]
[null,null,null,null,null,null,null,null,null,null,null,null,null,null,null,null,null,null,null,null,null,null,null,null,null,0]
[]
[null,null,null,null,null,null,null,null,null,null,null,null,null,null,null,null,null,null,null,null,null,null,null,null,null,0]
[" ",null,null,null,null,null,null,null,null,null,null,null,null,null,null,null,null,null,null,null,null,null,null,null,null,0]
["Soupis účetních dokladů:",null,null,null,null,null,null,null,null,null,null,null,null,null,null,null,null,null,null,null,null,null,null,null,null,0]
[" ",null,null,null,null,null,null,null,null,null,null,null,null,null,null,null,null,null,null,null,null,null,null,null,null,0]
["p. č.","č. daňového, příp. účetního dokladu","datum úhrady daného výdaje","účel výdaje",null,"celková \nčástka","z toho hrazeno \nz dotace","z toho hrazeno \nz jiných zdrojů",false,null,null,null,null,null,null,null,null,null,null,null,null,null,null,null,null,"z toho hrazeno \nz dotace"]
[{"$f":"ROW(A56)-ROW($D$55)","v":1},null,null,null,null,0,{"$f":"IF($I$55=TRUE,F56*$H$21%,0)","v":0},{"$f":"F56-G56","v":0},"Rozmyslete si, jakým způsobem budete chtít vyúčtovávat výdaje. ",null,null,null,null,null,null,null,null,null,null,null,null,null,null,null,null,{"$f":"G56","v":0}]
[2,null,null,null,null,0,0,{"$f":"F57-G57","v":0},"Jestliže U VŠECH DOKLADŮ automatickým poměrem % dle skutečnosti, ",null,null,null,null,null,null,null,null,null,null,null,null,null,null,null,null,0]
[3,null,null,null,null,0,0,{"$f":"F58-G58","v":0},"zaškrtněte růžové políčko a vyplňujte pouze celkovou částku.",null,null,null,null,null,null,null,null,null,null,null,null,null,null,null,null,0]
[4,null,null,null,null,0,0,{"$f":"F59-G59","v":0},null,null,null,null,null,null,null,null,null,null,null,null,null,null,null,null,null,0]
[5,null,null,null,null,0,0,{"$f":"F60-G60","v":0},null,null,null,null,null,null,null,null,null,null,null,null,null,null,null,null,null,0]
[6,null,null,null,null,0,0,{"$f":"F61-G61","v":0},"Jestliže budete chtít zadávat částky hrazené z dotace dle vlastního uvážení",null,null,null,null,null,null,null,null,null,null,null,null,null,null,null,null,0]
[7,null,null,null,null,0,0,{"$f":"F62-G62","v":0},"(poměru), můžete, ale pozor, přepíšete vzorec na automatický přepočet (sl. G).",null,null,null,null,null,null,null,null,null,null,null,null,null,null,null,null,0]
[8,null,null,null,null,0,0,{"$f":"F63-G63","v":0},null,null,null,null,null,null,null,null,null,null,null,null,null,null,null,null,null,0]
[9,null,null," ",null,0,0,{"$f":"F64-G64","v":0}]
[10,null,null," ",null,0,0,{"$f":"F65-G65","v":0}]
["CELKEM:",null,null,null,null,{"$f":"SUM(F56:F65)","v":0},{"$f":"SUM(G56:G65)","v":0},{"$f":"SUM(H56:H65)","v":0},"Pozor! Celková částka ze soupisu účetních dokladů SE NEROVNÁ výše uvedené částce způsobilých výdajů vynaložených příjemcem na projekt (v buňce E18)."]
[]
["Plátce DPH uvede částky bez DPH."]
["(pro tyto účely je za plátce DPH považována osoba, která uplatňuje nárok odpočtu DPH na vstupu)"]
[" "]
["!","Součástí vyúčtování musí být kopie prvotních daňových dokladů nebo kopie zjednodušených daňových dokladů, příp. kopie účetních dokladů včetně kopií k nim příslušných dokladů o zaplacení (výpisy z bankovního účtu nebo pokladní doklady). "]
[" "]
["!","Všechny doklady musí být označeny pořadovými čísly uvedenými v prvním sloupci soupisu účetních dokladů. \nDoklady o zaplacení pak pořadovými čísly dokladů, ke kterým se platba vztahuje."]
[]
["Soupis všech dalších veřejných zdrojů vztahujících se k projektu a stejným - částečně či plně překrývajícím uznatelným výdajům"]
["Název poskytovatele",null,null,"Výše dotace v Kč a podíl na celkových uznatelných výdajích v %",null,null,"Číslo dotačního programu a číslo smlouvy"]
[" ",null,null,null,null,null,null,null,"Zadejte všechny poskytovatele veřejných zdrojů, ze kterých byl projekt "]
[null,null,null,null,null,null,null,null,"spolufinancován."]
[]
[]
[]
["Doplňující informace (fotodokumentace projektu, články, publikace, CD a další):"]
[null,null,null,null,null,null,null,null,"Pro odřádkování použijte levý ALT + ENTER."]
[]
[]
[]
[]
[]
[" "]
["Zpracoval (jméno a podpis):"]
[" ",null,null,null,null,null,null,"podpis"]
["Schválil (razítko, jméno a podpis statutárního zástupce příjemce):"]
[" ",null,null,null,null,null,null,"podpis"]
["Datum:"]
[" "]
[]
[]
["[1] Příjemce uvede výčet dokladů přiložených k závěrečné zprávě o realizaci projektu, jimiž je prokazováno splnění závazných parametrů.",null,null,null,null,null,null,null,"zpět na buňku G54 - dokumenty k parametrům"]
["Účetní doklady jsou průkazné účetní záznamy, které musí obsahovat náležitosti dle zákona č. 563/1991 Sb., o účetnictví, § 11 Účetní doklady."]
["Běžný daňový doklad musí obsahovat náležitosti daňového dokladu dle zákona č. 235/2004 Sb., o dani z přidané hodnoty, § 29 Náležitosti daňového dokladu."]
[" "]
["Stručný výtah:"]
["Účetní doklady jsou průkazné účetní záznamy, které musí obsahovat:"]
["a)","označení účetního dokladu,"]
["b)","obsah účetního případu a jeho účastníky,"]
["c)","peněžní částku nebo informaci o ceně za měrnou jednotku a vyjádření množství,"]
["d)","okamžik vyhotovení účetního dokladu,"]
["e)","okamžik uskutečnění účetního případu, není-li shodný s okamžikem podle písmene d"]
["f)","podpisový záznam podle § 33a odst. 4 osoby odpovědné za účetní případ a podpisový záznam osoby odpovědné za jeho zaúčtování."]
[" "]
[" "]
["Běžný daňový doklad musí obsahovat"]
["a)","obchodní firmu nebo jméno a příjmení, případně název, dodatek jména a příjmení nebo názvu, sídlo nebo místo podnikání, popřípadě trvalý pobyt nebo místo podnikání plátce, který uskutečňuje zdanitelné plnění,"]
["b)","daňové identifikační číslo plátce, který uskutečňuje zdanitelné plnění,"]
["c)","obchodní firmu nebo jméno a příjmení, případně název, dodatek jména a příjmení nebo názvu, sídlo nebo místo podnikání, popřípadě trvalý pobyt nebo místo podnikání plátce, pro něhož se uskutečňuje zdanitelné plnění,"]
["d)","daňové identifikační číslo plátce, pro něhož se uskutečňuje zdanitelné plnění,"]
["e)","evidenční číslo dokladu,"]
["f)","rozsah a předmět zdanitelného plnění,"]
["g)","datum vystavení dokladu,"]
["h)","datum uskutečnění zdanitelného plnění,"]
["i)","výši ceny bez daně z přidané hodnoty celkem,"]
["j)","základní nebo sníženou sazbu daně, případně sdělení, že se jedná o zdanitelné plnění osvobozené od povinnosti uplatnit daň na výstupu podle § 46 nebo § 47,"]
["k)","výši daně celkem zaokrouhlenou na desetihaléře nahoru, popřípadě uvedenou i v haléřích."]
[" "]
[" "]
[" "]
[" "]